fUSD/lending_fUSD_20250806
["ID","MTS","AMOUNT","RATE_DAILY","PERIOD"]
[377618590,1754460639986,-610.0,0.0003413,2]
[377618591,1754460639996,-151.0,0.00034166,5]
[377618592,1754460640007,-168.68,0.00034215,2]
[377618593,1754460640018,-150.0,0.00034228,3]
[377618594,1754460640028,-390.0,0.000343,2]
[377618595,1754460640038,-865.0,0.00034407,2]
[377618596,1754460640047,-1170.0,0.00034407,2]
[377618597,1754460640056,-202.06,0.00034411,2]
[377618598,1754460640066,-9425.51661932,0.0003443,2]
[377618599,1754460640077,-655.28295906,0.0003443,2]
[377618600,1754460640088,-10380.16270458,0.0003443,2]
[377618601,1754460640101,-3439.03771704,0.0003443,2]
[377618602,1754460640112,-160.0,0.00034457,2]
[377618603,1754460640122,-988.54,0.00034684,39]
[377618604,1754460640132,-150.0,0.00034759,2]
[377618605,1754460640142,-152.832,0.00034759,2]
[377618606,1754460640151,-150.0,0.00034759,2]
[377618607,1754460640161,-809.0,0.00034759,2]
[377618608,1754460640170,-1252.0,0.00034759,2]
[377618609,1754460640180,-3362.0,0.00034759,2]
[377618610,1754460640190,-2024.0,0.00034759,2]
[377618611,1754460640199,-564.0,0.00034759,2]
[377618612,1754460640209,-597.0,0.00034759,2]
[377618613,1754460640218,-958.0,0.00034759,2]
[377618614,1754460640228,-1000.0,0.000348,2]
[377618615,1754460640239,-152.0,0.00034887,4]
[377618616,1754460640249,-150.0,0.00034932,7]
[377618617,1754460640259,-151.0,0.00034953,7]
[377618618,1754460640269,-217.66094799,0.00034953,7]
[377618619,1754460640280,-152.0,0.00034953,7]
[377618620,1754460640291,-151.0,0.00034953,7]
[377618621,1754460640300,-151.0,0.00034953,7]
[377618622,1754460640310,-1214.0,0.00034953,7]
[377618623,1754460640320,-1214.0,0.00034953,7]
[377618628,1754460640717,-151.0,0.00034953,7]
[377618629,1754460640729,-1214.0,0.00034953,7]
[377618630,1754460640743,-1214.0,0.00034953,7]
[377618631,1754460640754,-1214.0,0.00034953,7]
[377618632,1754460640764,-1214.0,0.00034953,7]
[377618633,1754460640774,-1214.0,0.00034953,7]
[377618634,1754460640783,-1214.0,0.00034953,7]
[377618635,1754460640793,-1214.0,0.00034953,7]
[377618636,1754460640803,-300.0,0.00035163,3]
[377618637,1754460640813,-500.0,0.00035164,7]
[377618638,1754460640823,-358.7,0.00035164,7]
[377618639,1754460640832,-500.0,0.00035164,7]
[377618640,1754460640842,-500.0,0.00035164,7]
[377618641,1754460640851,-268.55,0.00035164,7]
[377618642,1754460640862,-500.0,0.00035164,7]
[377618643,1754460640872,-160.98,0.00035189,2]
[377618644,1754460640882,-240.0,0.000352,2]
[377618645,1754460640892,-379.0,0.000352,2]
[377618646,1754460640902,-195.29,0.00035249,2]
[377618647,1754460640911,-382.0,0.0003548,2]
[377618648,1754460640921,-2068.4145,0.00035506,2]
[377618649,1754460640931,-2820.734,0.00035506,2]
[377618650,1754460640941,-274.9556,0.00035506,2]
[377618651,1754460640951,-613.122,0.00035506,2]
[377618652,1754460640961,-2500.0,0.00035506,2]
[377618653,1754460640971,-230.3407,0.00035506,2]
[377618654,1754460640981,-373.75107367,0.00035507,2]
[377618655,1754460640991,-155.36964725,0.00035507,2]
[377618656,1754460641002,-604.79404604,0.00035511,2]
[377618657,1754460641019,-5000.0,0.00035516,2]
[377618658,1754460641028,-2139.69746716,0.00035516,2]
[377618659,1754460641037,-155.06387446,0.00035516,15]
[377618660,1754460641047,-373.75107363,0.00035522,2]
[377618661,1754460641058,-859.192,0.00035531,7]
[377618662,1754460641067,-859.193,0.00035531,7]
[377618663,1754460641076,-859.193,0.00035531,7]
[377618664,1754460641087,-859.193,0.00035531,7]
[377618665,1754460641096,-859.192,0.00035531,7]
[377618666,1754460641105,-373.75107363,0.00035537,2]
[377618667,1754460641115,-373.75107363,0.00035552,2]
[377618668,1754460641124,-373.75107363,0.00035567,2]
[377618669,1754460641135,-604.79404603,0.00035572,2]
[377618670,1754460641144,-2139.69746715,0.00035577,2]
[377618671,1754460641154,-373.75107363,0.00035581,2]
[377618672,1754460641164,-5221.77119613,0.00035596,2]
[377618673,1754460641173,-373.75107363,0.00035596,2]
[377618674,1754460641182,-200.0,0.00035603,10]
[377618675,1754460641192,-410.1650709,0.00035605,7]
[377618676,1754460641201,-9012.76903484,0.00035606,2]
[377618677,1754460641214,-1260.51020135,0.00035606,2]
[377618678,1754460641225,-419.77238971,0.00035606,2]
[377618679,1754460641237,-8587.1606801,0.00035606,2]
[377618680,1754460641269,-184368.864343,0.00035606,2]
[377618681,1754460641279,-373.75107363,0.00035611,2]
[377618682,1754460641289,-150.0,0.00035616,5]
[377618683,1754460641299,-189.896131,0.00035616,14]
[377618684,1754460641309,-243.385005,0.00035616,14]
[377618685,1754460641319,-437.30658569,0.00035616,14]
[377618686,1754460641328,-400.0,0.00035616,14]
[377618687,1754460641338,-150.411918,0.00035616,14]
[377618688,1754460641348,-400.0,0.00035616,14]
[377618689,1754460641357,-218.348842,0.00035616,14]
[377618690,1754460641368,-400.0,0.00035616,14]
[377618691,1754460641378,-436.99819156,0.00035616,14]
[377618692,1754460641388,-400.0,0.00035616,14]
[377618693,1754460641398,-462.25389887,0.00035616,14]
[377618694,1754460641408,-488.41562071,0.00035616,14]
[377618695,1754460641417,-400.0,0.00035616,14]
[377618696,1754460641426,-163.835228,0.00035616,14]
[377618697,1754460641436,-400.0,0.00035616,14]
[377618698,1754460641446,-150.0,0.00035616,15]
[377618699,1754460641455,-400.0,0.00035616,14]
[377618700,1754460641465,-400.0,0.00035616,14]
[377618701,1754460641475,-400.0,0.00035616,14]
[377618702,1754460641485,-400.0,0.00035616,14]
[377618703,1754460641495,-153.730195,0.00035616,7]
[377618704,1754460641504,-400.0,0.00035616,14]
[377618705,1754460641516,-474.43844676,0.00035616,14]
[377618706,1754460641526,-400.0,0.00035616,14]
[377618707,1754460641535,-400.0,0.00035616,14]
[377618708,1754460641545,-400.0,0.00035616,14]
[377618709,1754460641554,-434.84159163,0.00035616,14]
[377618710,1754460641564,-2500.0,0.00035616,14]
[377618711,1754460641573,-400.0,0.00035616,2]
[377618712,1754460641583,-442.19336548,0.00035616,14]
[377618713,1754460641592,-400.0,0.00035616,14]
[377618714,1754460641601,-400.0,0.00035616,14]
[377618715,1754460641612,-400.0,0.00035616,14]
[377618716,1754460641622,-400.0,0.00035616,14]
[377618717,1754460641632,-151.0,0.00035616,7]
[377618718,1754460641642,-400.0,0.00035616,14]
[377618719,1754460641652,-400.0,0.00035616,14]
[377618720,1754460641662,-400.0,0.00035616,14]
[377618721,1754460641678,-400.0,0.00035616,14]
[377618722,1754460641692,-1189.85,0.00035616,14]
[377618723,1754460641702,-400.0,0.00035616,14]
[377618724,1754460641711,-432.07,0.00035616,14]
[377618725,1754460641722,-400.0,0.00035616,14]
[377618726,1754460641732,-400.0,0.00035616,14]
[377618727,1754460641742,-533.28,0.00035616,14]
[377618728,1754460641751,-1169.11,0.00035616,14]
[377618729,1754460641761,-450.40426244,0.00035616,14]
[377618730,1754460641771,-400.0,0.00035616,14]
[377618731,1754460641780,-771.97,0.00035616,14]
[377618732,1754460641791,-400.0,0.00035616,14]
[377618733,1754460641811,-406.11,0.00035616,14]
[377618734,1754460641821,-400.0,0.00035616,14]
[377618735,1754460641831,-400.0,0.00035616,14]
[377618736,1754460641841,-968.89,0.00035616,14]
[377618737,1754460641850,-603.02,0.00035616,14]
[377618738,1754460641859,-500.0,0.00035616,2]
[377618739,1754460641869,-500.0,0.00035616,2]
[377618740,1754460641879,-400.0,0.00035616,14]
[377618741,1754460641888,-500.0,0.00035616,2]
[377618742,1754460641898,-500.0,0.00035616,2]
[377618743,1754460641908,-400.0,0.00035616,14]
[377618744,1754460641917,-629.28,0.00035616,14]
[377618745,1754460641927,-400.0,0.00035616,14]
[377618746,1754460641937,-1695.38,0.00035616,14]
[377618747,1754460641947,-444.78,0.00035616,14]
[377618748,1754460641956,-400.0,0.00035616,14]
[377618749,1754460641966,-400.0,0.00035616,14]
[377618750,1754460641975,-1151.46,0.00035616,14]
[377618751,1754460641984,-767.82,0.00035616,14]
[377618752,1754460641993,-400.0,0.00035616,14]
[377618753,1754460642003,-400.0,0.00035616,14]
[377618754,1754460642017,-500.0,0.00035616,14]
[377618755,1754460642027,-500.0,0.00035616,14]
[377618756,1754460642036,-500.0,0.00035616,14]
[377618757,1754460642050,-500.0,0.00035616,14]
[377618758,1754460642061,-400.0,0.00035616,14]
[377618759,1754460642070,-500.0,0.00035616,14]
[377618760,1754460642080,-500.0,0.00035616,14]
[377618761,1754460642090,-1042.05,0.00035616,14]
[377618762,1754460642100,-868.46,0.00035616,14]
[377618763,1754460642110,-400.0,0.00035616,14]
[377618764,1754460642119,-400.0,0.00035616,14]
[377618765,1754460642129,-874.41,0.00035616,14]
[377618766,1754460642139,-400.0,0.00035616,14]
[377618767,1754460642148,-400.0,0.00035616,14]
[377618768,1754460642158,-400.0,0.00035616,14]
[377618769,1754460642167,-400.0,0.00035616,14]
[377618770,1754460642177,-400.0,0.00035616,14]
[377618771,1754460642187,-509.65,0.00035616,14]
[377618772,1754460642196,-400.0,0.00035616,14]
[377618773,1754460642206,-400.85757494,0.00035616,14]
[377618774,1754460642216,-518.58,0.00035616,14]
[377618775,1754460642225,-400.0,0.00035616,14]
[377618776,1754460642235,-400.0,0.00035616,5]
[377618777,1754460642244,-750.17,0.00035616,14]
[377618778,1754460642254,-400.0,0.00035616,14]
[377618779,1754460642263,-421.08,0.00035616,14]
[377618780,1754460642273,-400.0,0.00035616,14]
[377618781,1754460642283,-400.0,0.00035616,14]
[377618782,1754460642292,-891.64,0.00035616,14]
[377618783,1754460642301,-500.0,0.00035616,14]
[377618784,1754460642311,-500.0,0.00035616,14]
[377618785,1754460642320,-400.0,0.00035616,14]
[377618786,1754460642329,-500.0,0.00035616,14]
[377618787,1754460642339,-500.0,0.00035616,14]
[377618788,1754460642348,-500.0,0.00035616,14]
[377618789,1754460642359,-239.70178266,0.00035616,14]
[377618790,1754460642368,-500.0,0.00035616,14]
[377618791,1754460642378,-500.0,0.00035616,14]
[377618792,1754460642387,-400.0,0.00035616,14]
[377618793,1754460642397,-400.0,0.00035616,14]
[377618794,1754460642408,-500.0,0.00035616,14]
[377618795,1754460642417,-500.0,0.00035616,14]
[377618796,1754460642427,-400.0,0.00035616,14]
[377618797,1754460642437,-500.0,0.00035616,14]
[377618798,1754460642446,-500.0,0.00035616,14]
[377618799,1754460642456,-366.00246395,0.00035616,14]
[377618800,1754460642465,-400.0,0.00035616,14]
[377618801,1754460642475,-400.0,0.00035616,14]
[377618802,1754460642484,-443.86,0.00035616,14]
[377618803,1754460642494,-400.0,0.00035616,14]
[377618804,1754460642503,-500.0,0.00035616,14]
[377618805,1754460642513,-500.0,0.00035616,14]
[377618806,1754460642523,-400.0,0.00035616,14]
[377618807,1754460642532,-500.0,0.00035616,14]
[377618808,1754460642543,-500.0,0.00035616,14]
[377618809,1754460642552,-806.46,0.00035616,14]
[377618810,1754460642563,-500.0,0.00035616,14]
[377618811,1754460642576,-500.0,0.00035616,14]
[377618812,1754460642586,-500.0,0.00035616,14]
[377618813,1754460642596,-500.0,0.00035616,14]
[377618814,1754460642608,-500.0,0.00035616,14]
[377618815,1754460642619,-500.0,0.00035616,14]
[377618816,1754460642628,-400.0,0.00035616,14]
[377618817,1754460642639,-500.0,0.00035616,14]
[377618818,1754460642650,-400.0,0.00035616,14]
[377618819,1754460642661,-400.0,0.00035616,14]
[377618820,1754460642673,-400.0,0.00035616,14]
[377618821,1754460642693,-757.99,0.00035616,14]
[377618822,1754460642715,-400.0,0.00035616,14]
[377618823,1754460642734,-211.99530107,0.00035616,14]
[377618824,1754460642745,-865.33,0.00035616,14]
[377618825,1754460642756,-400.0,0.00035616,14]
[377618826,1754460642767,-455.89,0.00035616,14]
[377618827,1754460642776,-871.7,0.00035616,14]
[377618828,1754460642786,-1797.5,0.00035616,14]
[377618829,1754460642795,-400.32029226,0.00035616,14]
[377618831,1754460642806,-400.0,0.00035616,14]
[377618832,1754460642817,-400.0,0.00035616,2]
[377618834,1754460642828,-1012.86,0.00035616,14]
[377618835,1754460642837,-1423.13,0.00035616,14]
[377618837,1754460642847,-417.76,0.00035616,14]
[377618840,1754460642858,-400.0,0.00035616,14]
[377618842,1754460642868,-403.59314444,0.00035616,14]
[377618844,1754460642878,-800.1,0.00035616,14]
[377618845,1754460642887,-400.0,0.00035616,14]
[377618846,1754460642897,-629.34,0.00035616,14]
[377618847,1754460642906,-1437.2,0.00035616,14]
[377618848,1754460642916,-873.45,0.00035616,14]
[377618849,1754460642926,-400.0,0.00035616,14]
[377618850,1754460642935,-497.91,0.00035616,14]
[377618851,1754460642945,-190.75631407,0.00035616,14]
[377618852,1754460642954,-1177.96,0.00035616,14]
[377618853,1754460642963,-400.0,0.00035616,14]
[377618854,1754460642973,-400.0,0.00035616,14]
[377618855,1754460642982,-400.0,0.00035616,14]
[377618856,1754460642991,-500.0,0.00035616,14]
[377618857,1754460643001,-400.0,0.00035616,14]
[377618858,1754460643014,-400.0,0.00035616,14]
[377618859,1754460643023,-799.3,0.00035616,14]
[377618860,1754460643033,-400.0,0.00035616,14]
[377618861,1754460643042,-400.70172953,0.00035616,14]
[377618862,1754460643052,-400.0,0.00035616,14]
[377618863,1754460643062,-400.0,0.00035616,14]
[377618864,1754460643072,-905.15,0.00035616,14]
[377618865,1754460643082,-400.0,0.00035616,14]
[377618866,1754460643092,-752.3,0.00035616,14]
[377618867,1754460643102,-400.0,0.00035616,14]
[377618868,1754460643112,-1401.03,0.00035616,14]
[377618869,1754460643122,-400.0,0.00035616,14]
[377618870,1754460643133,-400.0,0.00035616,14]
[377618871,1754460643142,-503.59289239,0.00035616,14]
[377618872,1754460643152,-400.0,0.00035616,14]
[377618873,1754460643162,-875.21,0.00035616,14]
[377618874,1754460643174,-400.0,0.00035616,14]
[377618875,1754460643183,-400.0,0.00035616,14]
[377618876,1754460643192,-1587.37,0.00035616,14]
[377618877,1754460643202,-400.0,0.00035616,14]
[377618878,1754460643211,-400.0,0.00035616,14]
[377618879,1754460643220,-400.0,0.00035616,14]
[377618880,1754460643230,-539.07,0.00035616,14]
[377618881,1754460643240,-400.93275927,0.00035616,14]
[377618882,1754460643250,-400.0,0.00035616,14]
[377618883,1754460643259,-546.23,0.00035616,14]
[377618884,1754460643269,-1095.92,0.00035616,14]
[377618885,1754460643278,-1254.36,0.00035616,14]
[377618886,1754460643287,-598.28,0.00035616,14]
[377618887,1754460643297,-738.61,0.00035616,14]
[377618888,1754460643308,-400.0,0.00035616,14]
[377618889,1754460643319,-400.0,0.00035616,14]
[377618890,1754460643329,-400.0,0.00035616,14]
[377618891,1754460643338,-400.0,0.00035616,14]
[377618892,1754460643347,-400.0,0.00035616,14]
[377618893,1754460643357,-384.22716751,0.00035616,14]
[377618894,1754460643366,-1073.7,0.00035616,14]
[377618895,1754460643375,-400.0,0.00035616,14]
[377618896,1754460643385,-400.0,0.00035616,14]
[377618897,1754460643395,-1221.93,0.00035616,14]
[377618898,1754460643406,-773.9,0.00035616,14]
[377618899,1754460643416,-400.0,0.00035616,14]
[377618900,1754460643425,-400.0,0.00035616,14]
[377618901,1754460643435,-400.0,0.00035616,14]
[377618902,1754460643444,-400.0,0.00035616,14]
[377618903,1754460643454,-400.0,0.00035616,14]
[377618904,1754460643463,-400.0,0.00035616,14]
[377618905,1754460643473,-400.0,0.00035616,14]
[377618906,1754460643482,-400.0,0.00035616,14]
[377618907,1754460643492,-461.1,0.00035616,14]
[377618908,1754460643502,-1186.74,0.00035616,14]
[377618909,1754460643512,-400.0,0.00035616,14]
[377618910,1754460643523,-571.27,0.00035616,14]
[377618911,1754460643535,-400.0,0.00035616,14]
[377618912,1754460643547,-461.55,0.00035616,14]
[377618913,1754460643557,-458.26,0.00035616,14]
[377618914,1754460643569,-307.87828604,0.00035616,14]
[377618915,1754460643579,-400.0,0.00035616,14]
[377618916,1754460643589,-400.0,0.00035616,14]
[377618917,1754460643599,-400.0,0.00035616,14]
[377618918,1754460643609,-616.73,0.00035616,14]
[377618919,1754460643618,-1190.42,0.00035616,14]
[377618920,1754460643628,-400.0,0.00035616,14]
[377618921,1754460643637,-902.66,0.00035616,14]
[377618922,1754460643647,-600.19,0.00035616,14]
[377618923,1754460643657,-400.0,0.00035616,14]
[377618924,1754460643666,-557.78,0.00035616,14]
[377618925,1754460643676,-400.0,0.00035616,14]
[377618926,1754460643686,-400.0,0.00035616,14]
[377618927,1754460643700,-400.0,0.00035616,14]
[377618928,1754460643710,-496.08153309,0.00035616,14]
[377618929,1754460643720,-400.0,0.00035616,14]
[377618930,1754460643730,-1233.33,0.00035616,14]
[377618931,1754460643739,-400.0,0.00035616,14]
[377618932,1754460643749,-702.55,0.00035616,14]
[377618933,1754460643758,-1688.14,0.00035616,14]
[377618934,1754460643770,-1449.24,0.00035616,14]
[377618935,1754460643779,-400.0,0.00035616,14]
[377618936,1754460643789,-400.0,0.00035616,14]
[377618937,1754460643799,-400.0,0.00035616,14]
[377618938,1754460643809,-400.0,0.00035616,14]
[377618939,1754460643819,-400.0,0.00035616,14]
[377618940,1754460643830,-694.24,0.00035616,14]
[377618941,1754460643840,-400.0,0.00035616,14]
[377618942,1754460643850,-667.64,0.00035616,14]
[377618943,1754460643861,-401.17196402,0.00035616,14]
[377618944,1754460643871,-400.0,0.00035616,14]
[377618945,1754460643881,-400.0,0.00035616,14]
[377618946,1754460643891,-500.0,0.00035616,10]
[377618947,1754460643901,-400.0,0.00035616,14]
[377618948,1754460643910,-400.0,0.00035616,14]
[377618949,1754460643920,-902.48,0.00035616,14]
[377618950,1754460643930,-554.67,0.00035616,14]
[377618951,1754460643939,-556.92,0.00035616,14]
[377618952,1754460643949,-400.0,0.00035616,14]
[377618953,1754460643958,-163.44480258,0.00035616,14]
[377618954,1754460644003,-236.55519742,0.00035616,14]
[377618955,1754460644018,-400.0,0.00035616,14]
[377618956,1754460644029,-400.0,0.00035616,14]
[377618957,1754460644039,-665.22,0.00035616,14]
[377618958,1754460644051,-10.77410878,0.00035616,14]
[377618959,1754460644065,-1756.75589122,0.00035616,14]
[377618960,1754460644076,-1753.9,0.00035616,14]
[377618961,1754460644087,-1433.3,0.00035616,14]
[377618962,1754460644097,-400.0,0.00035616,14]
[377618963,1754460644109,-1302.75,0.00035616,14]
[377618964,1754460644119,-276.85928034,0.00035616,14]
[377618965,1754460644131,-721.26,0.00035616,14]
[377618966,1754460644142,-1244.93,0.00035616,14]
[377618967,1754460644152,-400.0,0.00035616,14]
[377618968,1754460644162,-400.0,0.00035616,14]
[377618969,1754460644172,-400.0,0.00035616,14]
[377618970,1754460644184,-2002.15,0.00035616,14]
[377618971,1754460644195,-703.18,0.00035616,14]
[377618972,1754460644206,-400.0,0.00035616,14]
[377618973,1754460644215,-400.0,0.00035616,14]
[377618974,1754460644226,-400.0,0.00035616,14]
[377618975,1754460644236,-673.34,0.00035616,14]
[377618976,1754460644246,-400.0,0.00035616,14]
[377618977,1754460644256,-1224.63,0.00035616,14]
[377618978,1754460644267,-512.3,0.00035616,14]
[377618979,1754460644275,-501.66,0.00035616,14]
[377618980,1754460644286,-712.18,0.00035616,14]
[377618981,1754460644296,-400.0,0.00035616,14]
[377618982,1754460644306,-400.0,0.00035616,14]
[377618983,1754460644317,-507.1,0.00035616,14]
[377618984,1754460644329,-1663.36,0.00035616,14]
[377618985,1754460644340,-151.0,0.00035616,7]
[377618986,1754460644351,-400.0,0.00035616,14]
[377618987,1754460644361,-400.0,0.00035616,14]
[377618988,1754460644372,-400.0,0.00035616,14]
[377618989,1754460644382,-1568.97,0.00035616,14]
[377618990,1754460644393,-400.0,0.00035616,14]
[377618991,1754460644407,-828.74,0.00035616,14]
[377618992,1754460644420,-1164.95,0.00035616,14]
[377618993,1754460644430,-457.56,0.00035616,14]
[377618994,1754460644441,-400.0,0.00035616,14]
[377618995,1754460644450,-400.0,0.00035616,14]
[377618996,1754460644460,-400.0,0.00035616,14]
[377618997,1754460644470,-400.0,0.00035616,14]
[377618998,1754460644480,-408.53,0.00035616,14]
[377618999,1754460644490,-400.0,0.00035616,14]
[377619000,1754460644500,-400.0,0.00035616,14]
[377619001,1754460644511,-566.47,0.00035616,14]
[377619002,1754460644521,-400.0,0.00035616,14]
[377619003,1754460644532,-1415.82,0.00035616,14]
[377619004,1754460644543,-156.874092,0.00035616,7]
[377619005,1754460644554,-455.94,0.00035616,14]
[377619006,1754460644566,-1739.32,0.00035616,14]
[377619007,1754460644576,-400.0,0.00035616,14]
[377619008,1754460644587,-400.0,0.00035616,14]
[377619009,1754460644597,-400.0,0.00035616,14]
[377619010,1754460644607,-918.72,0.00035616,14]
[377619011,1754460644617,-400.0,0.00035616,14]
[377619012,1754460644627,-1650.49,0.00035616,14]
[377619013,1754460644638,-400.0,0.00035616,14]
[377619014,1754460644648,-1628.85,0.00035616,14]
[377619015,1754460644658,-1712.95,0.00035616,14]
[377619016,1754460644667,-800.51,0.00035616,14]
[377619017,1754460644677,-937.05,0.00035616,14]
[377619018,1754460644687,-467.63,0.00035616,14]
[377619019,1754460644698,-400.0,0.00035616,14]
[377619020,1754460644707,-400.0,0.00035616,14]
[377619021,1754460644717,-1142.75,0.00035616,14]
[377619022,1754460644728,-2803.41,0.00035616,14]
[377619023,1754460644738,-500.0,0.00035616,10]
[377619024,1754460644747,-400.0,0.00035616,14]
[377619025,1754460644758,-722.25,0.00035616,14]
[377619026,1754460644768,-2039.98,0.00035616,14]
[377619027,1754460644778,-1607.92,0.00035616,14]
[377619028,1754460644788,-400.0,0.00035616,14]
[377619029,1754460644800,-1061.04,0.00035616,14]
[377619030,1754460644811,-400.0,0.00035616,14]
[377619031,1754460644821,-1633.86,0.00035616,14]
[377619032,1754460644830,-400.0,0.00035616,14]
[377619033,1754460644840,-1684.55,0.00035616,14]
[377619034,1754460644851,-1488.51,0.00035616,14]
[377619035,1754460644861,-400.0,0.00035616,14]
[377619036,1754460644871,-400.0,0.00035616,14]
[377619037,1754460644881,-884.12,0.00035616,14]
[377619038,1754460644891,-989.26,0.00035616,14]
[377619039,1754460644902,-400.0,0.00035616,14]
[377619040,1754460644912,-162.157196,0.00035616,7]
[377619041,1754460644923,-1651.23,0.00035616,14]
[377619042,1754460644934,-1560.61,0.00035616,14]
[377619043,1754460644945,-2848.76,0.00035616,14]
[377619044,1754460644955,-500.0,0.00035616,14]
[377619045,1754460644967,-503.22970295,0.00035616,14]
[377619046,1754460644977,-400.0,0.00035616,14]
[377619047,1754460644987,-688.33,0.00035616,14]
[377619048,1754460644998,-1787.52,0.00035616,14]
[377619049,1754460645010,-400.0,0.00035616,14]
[377619050,1754460645021,-1135.79,0.00035616,14]
[377619051,1754460645031,-404.41,0.00035616,14]
[377619052,1754460645343,-1240.05,0.00035616,14]
[377619053,1754460645353,-762.31,0.00035616,14]
[377619054,1754460645363,-400.0,0.00035616,14]
[377619055,1754460645373,-400.0,0.00035616,14]
[377619056,1754460645383,-400.0,0.00035616,14]
[377619057,1754460645392,-516.99,0.00035616,14]
[377619058,1754460645402,-424.42,0.00035616,14]
[377619059,1754460645412,-646.14,0.00035616,14]
[377619060,1754460645422,-555.05,0.00035616,14]
[377619061,1754460645432,-400.0,0.00035616,14]
[377619062,1754460645442,-400.0,0.00035616,14]
[377619063,1754460645452,-291.45651436,0.00035616,14]
[377619064,1754460645462,-1190.51,0.00035616,14]
[377619065,1754460645472,-156.074612,0.00035616,14]
[377619066,1754460645483,-400.0,0.00035616,14]
[377619067,1754460645493,-632.1,0.00035616,14]
[377619068,1754460645504,-558.42,0.00035616,14]
[377619069,1754460645516,-625.05,0.00035616,14]
[377619070,1754460645527,-400.0,0.00035616,14]
[377619071,1754460645538,-400.0,0.00035616,14]
[377619072,1754460645549,-500.0,0.00035616,14]
[377619073,1754460645559,-500.0,0.00035616,14]
[377619074,1754460645569,-428.02,0.00035616,14]
[377619075,1754460645580,-156.609553,0.00035616,14]
[377619076,1754460645591,-400.0,0.00035616,14]
[377619077,1754460645603,-441.02,0.00035616,14]
[377619078,1754460645612,-400.0,0.00035616,14]
[377619079,1754460645621,-400.0,0.00035616,14]
[377619080,1754460645631,-503.11,0.00035616,14]
[377619081,1754460645642,-493.96,0.00035616,14]
[377619082,1754460645652,-400.0,0.00035616,14]
[377619083,1754460645661,-797.04,0.00035616,14]
[377619084,1754460645671,-1783.11,0.00035616,14]
[377619085,1754460645681,-430.77,0.00035616,14]
[377619086,1754460645692,-1347.022748,0.00035616,14]
[377619087,1754460645702,-166.965207,0.00035616,14]
[377619088,1754460645712,-604.6,0.00035616,14]
[377619089,1754460645722,-1937.49,0.00035616,14]
[377619090,1754460645732,-400.0,0.00035616,14]
[377619091,1754460645742,-400.0,0.00035616,14]
[377619092,1754460645752,-400.0,0.00035616,14]
[377619093,1754460645763,-920.09,0.00035616,14]
[377619094,1754460645772,-156.562602,0.00035616,14]
[377619095,1754460645782,-1603.09,0.00035616,14]
[377619096,1754460645792,-1742.58,0.00035616,14]
[377619097,1754460645803,-1484.48,0.00035616,14]
[377619098,1754460645815,-400.0,0.00035616,14]
[377619099,1754460645826,-739.98,0.00035616,14]
[377619100,1754460645837,-400.0,0.00035616,14]